bitfinex/quotes_SOLUSD_20250204
["timestamp","ask_amount","ask_price","bid_price","bid_amount"]
[1738704657425,0.12549,204.52,204.5,0.5]
[1738704657426,20.12549,204.51,204.5,0.0001]
[1738704657628,62.03618605,204.51,204.5,0.0001]
[1738704658040,41.91069605,204.51,204.5,0.0001]
[1738704658459,42.03618605,204.51,204.5,0.0001]
[1738704658760,54.26048605,204.51,204.43,1.0]
[1738704658966,37.02099605,204.47,204.43,1.0]
[1738704659339,37.02099605,204.47,204.43,313.0]
[1738704659539,37.02099605,204.49,204.43,313.0]
[1738704659752,0.10542956,204.53,204.49,13.41184853]
[1738704660051,37.02099605,204.51,204.43,1.0]
[1738704660253,37.02099605,204.49,204.43,1.0]
[1738704660833,37.02099605,204.51,204.47,1.0]
[1738704661050,0.10542956,204.53,204.5,2.0]
[1738704661256,0.10542956,204.53,204.52,15.41184853]
[1738704661939,0.10542956,204.53,204.52,58.43191446]
[1738704662144,0.09985916,204.59,204.57,2.0]
[1738704662460,0.09985916,204.59,204.57,39.02099605]
[1738704662828,0.09985916,204.59,204.57,364.80931458]
[1738704663246,0.09985916,204.59,204.57,364.68382458]
[1738704663478,0.09985916,204.59,204.57,327.41184853]
[1738704663958,0.09985916,204.59,204.57,364.68382458]
[1738704664334,0.09985916,204.59,204.57,364.43284458]
[1738704664727,0.09985916,204.59,204.57,364.55833458]
[1738704664926,0.09985916,204.59,204.57,364.43284458]
[1738704665533,0.09985916,204.59,204.57,327.41184853]
[1738704666630,0.09985916,204.59,204.57,364.55833458]
[1738704666833,0.09985916,204.59,204.57,364.43284458]
[1738704667135,0.09985916,204.59,204.57,327.41184853]
[1738704667334,4.8868,204.63,204.58,13.41184853]
[1738704667754,4.8868,204.63,204.57,2.0]
[1738704667755,4.8866,204.64,204.6,1.0]
[1738704667957,0.10285164,204.58,204.56,13.41184853]
[1738704668155,0.10285164,204.58,204.57,14.41184853]
[1738704668409,0.13285164,204.58,204.52,7.1258]
[1738704668574,0.13285164,204.58,204.57,1.0]
[1738704668863,0.12549,204.57,204.51,1.063]
[1738704669074,37.02099605,204.54,204.51,0.063]
[1738704669274,37.02099605,204.54,204.51,1.063]
[1738704669436,37.15384769,204.58,204.55,1.0]
[1738704669631,20.0,204.55,204.51,1.063]
[1738704669984,20.0,204.55,204.51,0.063]
[1738704669985,37.14648605,204.52,204.51,0.063]
[1738704670277,20.0,204.55,204.51,0.063]
[1738704670473,20.0,204.55,204.51,313.063]
[1738704670783,4.8883,204.57,204.52,1.0]
[1738704670983,0.13285164,204.58,204.55,1.0]
[1738704671139,0.13285164,204.58,204.57,15.41184853]
[1738704671564,0.13285164,204.58,204.57,15.78831853]
[1738704671952,0.09751649,204.59,204.57,20.55112853]
[1738704672173,0.09751649,204.59,204.58,51.54216841]
[1738704672376,37.02099605,204.74,204.63,0.12549]
[1738704672677,37.02099605,204.74,204.64,52.68382458]
[1738704673056,0.03,204.75,204.64,52.68382458]
[1738704673253,4.9141,204.75,204.64,52.68382458]
[1738704673676,0.03,204.75,204.64,53.54199211]
[1738704673892,0.03,204.75,204.65,13.66282853]
[1738704674193,37.02099605,204.74,204.65,13.53733853]
[1738704674494,4.8855,204.69,204.64,2.0]
[1738704674694,37.02099605,204.72,204.64,39.02099605]
[1738704675066,4.885,204.71,204.65,13.41184853]
[1738704675560,37.02099605,204.74,204.65,13.66282853]
[1738704675767,37.02099605,204.74,204.65,13.41184853]
[1738704675971,37.02099605,204.72,204.64,2.0]
[1738704676379,37.02099605,204.68,204.64,2.0]
[1738704676697,41.90589605,204.72,204.65,13.53733853]
[1738704676897,0.03,204.75,204.65,13.78831853]
[1738704677064,0.03,204.75,204.66,52.68382458]
[1738704677461,7.058e-05,204.67,204.66,364.93480458]
[1738704677662,0.03,204.75,204.74,15.78831853]
[1738704677901,0.03,204.8,204.79,1.25098]
[1738704678195,0.03,204.8,204.79,57.56682458]
[1738704678789,0.03,204.8,204.79,2.0]
[1738704678997,0.03,204.8,204.79,1.0]
[1738704679194,0.03,204.8,204.75,1.0]
[1738704679721,37.02099605,204.76,204.73,1.0]
[1738704679930,37.02099605,204.74,204.72,1.0]
[1738704680100,41.90479605,204.76,204.68,1.0]
[1738704680306,41.90479605,204.76,204.72,1.0]
[1738704680513,41.90479605,204.76,204.74,2.0]
[1738704680718,4.8838,204.76,204.74,1.0]
[1738704680902,37.02099605,204.78,204.74,1.0]
[1738704681094,41.90439605,204.78,204.74,1.0]
[1738704681296,41.90439605,204.78,204.72,1.0]
[1738704681523,41.90439605,204.78,204.7,14.41184853]
[1738704681524,37.02099605,204.76,204.7,14.41184853]
[1738704681736,37.02099605,204.74,204.68,1.0]
[1738704682039,4.8854,204.69,204.67,1.0]
[1738704682330,37.02099605,204.7,204.67,1.0]
[1738704682525,4.8846,204.73,204.71,1.0]
[1738704682696,37.02099605,204.76,204.72,1.0]
[1738704683018,4.8843,204.74,204.72,1.0]
[1738704683227,41.90529605,204.74,204.69,1.0]
[1738704683531,41.90529605,204.74,204.69,2.0]
[1738704683720,41.90529605,204.74,204.69,1.0]
[1738704684535,37.02099605,204.7,204.64,1.0]
[1738704684840,37.02099605,204.72,204.68,1.0]
[1738704684998,54.11589605,204.74,204.68,1.0]
[1738704685199,41.90529605,204.74,204.7,13.41184853]
[1738704685508,4.8843,204.74,204.72,2.0]
[1738704685720,37.05099605,204.8,204.77,1.0]
[1738704686021,4.913,204.8,204.76,1.0]
[1738704686412,0.03,204.8,204.79,1.0]
[1738704686623,0.03,204.8,204.79,14.41184853]
[1738704687617,0.03,204.8,204.79,326.41184853]
[1738704687947,0.1188194,204.8,204.79,312.0]
[1738704688103,74.1608115,204.8,204.73,1.0]
[1738704688308,37.02099605,204.74,204.73,1.0]
[1738704688508,41.90519605,204.74,204.73,1.0]
[1738704688728,4.8839,204.76,204.73,1.0]
[1738704689300,41.90489605,204.76,204.73,1.0]
[1738704689537,41.90489605,204.76,204.75,1.0]
[1738704689941,4.8834,204.78,204.75,1.0]
[1738704690109,0.1188194,204.8,204.79,1.0]
[1738704690314,0.1188194,204.8,204.79,14.41184853]
[1738704691118,0.1188194,204.8,204.79,326.41184853]
[1738704691321,5.0016194,204.8,204.78,1.0]
[1738704691525,0.1188194,204.8,204.79,1.0]
[1738704691832,0.1188194,204.8,204.79,14.41184853]
[1738704692245,0.1188194,204.8,204.79,14.66282853]
[1738704692449,0.1188194,204.8,204.79,19.67131853]
[1738704692650,0.1188194,204.8,204.79,20.40352755]
[1738704693040,4.741e-05,204.82,204.81,4.50196]
[1738704693345,0.09143453,204.89,204.88,2.12549]
[1738704693522,0.09143453,204.89,204.88,111.56213957]
[1738704693731,4.8772,205.04,205.0,2.0]
[1738704693934,37.02099605,205.03,205.0,15.41184853]
[1738704694242,37.05099605,205.01,204.95,1.0]
[1738704694547,37.02099605,204.96,204.9,2.0]
[1738704694749,37.02099605,204.95,204.94,1.0]
[1738704694978,0.15549,205.01,205.0,2.0]
[1738704694979,4.9079,205.01,205.0,2.0]
[1738704695245,0.03,205.01,205.0,15.41184853]
[1738704696212,4.878,205.0,204.97,1.0]
[1738704696547,0.03,205.01,205.0,2.0]
[1738704696844,0.03,205.01,205.0,90.56170914]
[1738704697214,14.48488335,205.13,205.12,2.0]
[1738704697420,14.48488335,205.13,205.12,327.41184853]
[1738704697642,14.48488335,205.13,205.12,327.78831853]
[1738704698011,0.03,205.22,205.21,1.0]
[1738704698332,0.03,205.22,205.21,15.41184853]
[1738704698535,0.03,205.22,205.21,1.0]
[1738704699049,0.03,205.22,205.21,2.0]
[1738704699230,0.03,205.22,205.21,52.43284458]
[1738704699437,0.03,205.26,205.25,1.0]
[1738704699632,0.03,205.26,205.25,52.80931458]
[1738704699954,0.03,205.26,205.25,54.66530155]
[1738704700248,0.03,205.26,205.25,53.53981155]
[1738704700455,0.03,205.26,205.25,53.66530155]
[1738704700617,14.48488335,205.35,205.34,2.0]
[1738704700962,4.8699,205.34,205.32,2.0]
[1738704701116,0.03,205.37,205.34,2.0]
[1738704701316,4.8992,205.37,205.36,1.0]
[1738704701536,41.92019605,205.37,205.32,1.0]
[1738704701734,37.02099605,205.33,205.31,1.0]
[1738704701937,37.02099605,205.33,205.3,1.0]
[1738704701938,4.8992,205.37,205.34,1.0]
[1738704702144,0.03,205.37,205.36,2.0]
[1738704702568,0.03,205.37,205.36,39.02099605]
[1738704702863,0.03,205.37,205.36,52.55833458]
[1738704703330,0.03,205.37,205.36,2.0]
[1738704703731,0.03,205.37,205.36,39.02099605]
[1738704703927,0.03,205.37,205.36,364.80931458]
[1738704704160,0.03,205.37,205.36,365.93480458]
[1738704704357,0.03,205.37,205.36,364.80931458]
[1738704704732,0.03,205.43,205.42,2.37647]
[1738704704957,0.03,205.43,205.42,39.02099605]
[1738704705352,0.03,205.43,205.42,52.80931458]
[1738704705549,0.03,205.43,205.42,53.93480458]
[1738704705743,0.03,205.43,205.42,52.93480458]
[1738704705951,37.02099605,205.52,205.5,1.0]
[1738704706137,0.03,205.53,205.5,1.0]
[1738704706350,0.03,205.53,205.51,1.0]
[1738704706865,0.12549,205.51,205.45,1.0]
[1738704707064,37.02099605,205.46,205.4,1.0]
[1738704707234,0.12549,205.49,205.4,1.0]
[1738704707235,37.02099605,205.43,205.4,1.0]
[1738704707434,37.02099605,205.43,205.42,1.0]
[1738704707654,37.02099605,205.49,205.46,2.0]
[1738704707834,37.02099605,205.49,205.46,1.0]
[1738704708036,0.09507871,205.47,205.46,2.0]
[1738704708532,0.09507871,205.47,205.46,52.80931458]
[1738704708732,0.09507871,205.47,205.46,52.43284458]
[1738704709668,0.09507871,205.47,205.46,2.0]
[1738704709874,0.09507871,205.47,205.46,39.02099605]
[1738704710079,0.03,205.59,205.52,2.37647]
[1738704710281,0.03,205.59,205.56,52.80931458]
[1738704710788,0.03,205.59,205.56,2.0]
[1738704710996,37.05099605,205.58,205.56,1.0]
[1738704711272,41.91529605,205.58,205.56,1.0]
[1738704711472,4.8943,205.58,205.56,313.0]
[1738704711850,0.03,205.58,205.56,39.27197605]
[1738704712248,0.03,205.58,205.56,39.02099605]
[1738704712450,0.03,205.58,205.56,2.0]
[1738704712673,37.05099605,205.58,205.56,1.0]
[1738704712868,4.8945,205.57,205.55,2.0]
[1738704713172,0.12549,205.54,205.51,1.0]
[1738704713359,37.02099605,205.52,205.45,2.0]
[1738704713545,37.02099605,205.47,205.44,1.0]
[1738704713743,37.02099605,205.45,205.42,1.0]
[1738704714083,37.02099605,205.51,205.46,2.0]
[1738704714375,37.02099605,205.47,205.46,1.0]
[1738704714576,37.02099605,205.47,205.42,1.0]
[1738704714747,37.02099605,205.47,205.41,1.0]
[1738704714748,37.02099605,205.45,205.44,1.0]
[1738704714951,41.88829605,205.45,205.44,1.0]
[1738704715176,41.88829605,205.45,205.43,1.0]
[1738704715662,1.22870387,205.52,205.5,2.0]
[1738704715663,4.8657,205.52,205.5,2.0]
[1738704715872,37.02099605,205.55,205.52,2.0]
[1738704716054,4.8647,205.56,205.55,1.0]
[1738704716249,4.99019,205.56,205.55,1.0]
[1738704716548,0.12549,205.55,205.52,1.0]
[1738704716761,37.02099605,205.53,205.52,1.0]
[1738704716958,17.0265,205.56,205.52,1.0]
[1738704716959,41.88599605,205.55,205.52,1.0]
[1738704717162,37.02099605,205.53,205.51,1.0]
[1738704717387,0.03,205.57,205.5,1.0]
[1738704717388,0.03,205.57,205.56,2.0]
[1738704717594,0.03,205.58,205.57,13.66282853]
[1738704717902,37.02099605,205.72,205.7,1.0]
[1738704718080,37.02099605,205.72,205.68,1.0]
[1738704718279,74.1674821,205.7,205.63,1.0]
[1738704718489,37.02099605,205.64,205.63,1.0]
[1738704718678,37.14648605,205.64,205.61,1.0]
[1738704718879,4.8635,205.61,205.57,1.0]
[1738704719073,37.02099605,205.58,205.54,1.0]
[1738704719288,0.12549,205.55,205.5,1.0]
[1738704719489,37.02099605,205.51,205.47,0.063]
[1738704719795,37.02099605,205.49,205.47,0.063]
[1738704720294,0.12549,205.45,205.44,1.0]
[1738704720507,0.12549,205.45,205.41,1.0]
[1738704720675,37.02099605,205.42,205.39,1.0]
[1738704720872,0.12549,205.39,205.34,2.0]
[1738704721177,0.12549,205.39,205.37,1.0]
[1738704721178,4.8687,205.39,205.37,1.0]
[1738704721372,20.0,205.35,205.32,1.0]
[1738704721580,37.02099605,205.33,205.28,2.0]
[1738704721906,37.02099605,205.36,205.33,2.0]
[1738704722113,4.8676,205.44,205.41,1.0]
[1738704722276,1.50264913,205.47,205.43,1.0]
[1738704722578,37.02099605,205.45,205.4,1.0]
[1738704722781,4.8671,205.46,205.44,1.0]
[1738704722989,4.8671,205.46,205.43,1.0]
[1738704723200,4.99219,205.48,205.45,1.0]
[1738704723401,4.99219,205.48,205.44,1.0]
[1738704723402,0.12549,205.46,205.44,1.0]
[1738704723583,0.12549,205.46,205.42,2.0]
[1738704723913,37.02099605,205.53,205.5,0.92565248]
[1738704724205,0.12549,205.52,205.48,0.92565248]
[1738704724775,0.12549,205.52,205.5,0.92565248]
[1738704724978,0.12549,205.52,205.48,0.92565248]
[1738704724979,4.8659,205.51,205.48,0.92565248]
[1738704725195,4.99139,205.51,205.5,312.0]
[1738704725394,20.0,205.48,205.42,0.92565248]
[1738704725696,20.0,205.48,205.45,0.92565248]
[1738704725999,4.8659,205.51,205.48,0.92565248]
[1738704726309,39.82651285,205.61,205.4,4.99389]
[1738704726310,37.02099605,205.62,205.57,0.92565248]
[1738704726612,4.8628,205.64,205.59,0.92565248]
[1738704726613,41.88379605,205.64,205.59,0.92565248]
[1738704726901,4.8624,205.66,205.64,0.92565248]
[1738704727110,0.12549,205.67,205.64,0.92565248]
[1738704727397,37.02099605,205.68,205.66,0.92565248]
[1738704727708,4.8616,205.69,205.62,0.92565248]
[1738704727884,4.8615,205.7,205.69,0.92565248]
[1738704728085,0.09494605,205.7,205.69,0.92565248]
[1738704729400,0.09494605,205.7,205.69,52.46416035]
[1738704729588,0.09494605,205.7,205.69,14.33750101]
[1738704729986,0.09494605,205.7,205.69,326.33750101]
[1738704730379,0.09494605,205.7,205.69,312.92565248]
[1738704730583,0.22043605,205.7,205.69,312.92565248]
[1738704730810,20.37647,205.66,205.6,0.92565248]
[1738704730983,4.98899,205.61,205.57,0.92565248]
[1738704731180,0.12549,205.57,205.53,0.92565248]
[1738704731397,0.12549,205.53,205.49,0.92565248]
[1738704731598,37.02099605,205.52,205.47,0.92565248]
[1738704731804,37.02099605,205.54,205.49,0.92565248]
[1738704731986,0.12549,205.53,205.49,0.92565248]
[1738704732188,20.12549,205.48,205.47,0.92565248]
[1738704732407,57.14648605,205.48,205.45,0.92565248]
[1738704732793,57.14648605,205.48,205.38,50.49584458]
[1738704732794,37.02099605,205.46,205.42,0.92565248]
[1738704733104,0.12549,205.42,205.38,0.063]
[1738704733278,37.14648605,205.42,205.38,0.063]
[1738704733982,0.12549,205.39,205.38,0.063]
[1738704734183,0.12549,205.39,205.38,0.0001]
[1738704734877,37.02099605,205.53,205.5,0.92565248]
[1738704735079,37.02099605,205.53,205.38,51.43294458]
[1738704735080,41.88589605,205.55,205.48,0.92565248]
[1738704735277,4.8649,205.55,205.48,37.94664853]
[1738704735496,4.8645,205.57,205.54,0.92565248]
[1738704735680,0.07434752,205.52,205.39,0.92565248]
[1738704735888,37.02099605,205.45,205.37,0.92565248]
[1738704736091,37.02099605,205.43,205.37,0.92565248]
[1738704736884,37.02099605,205.47,205.44,0.92565248]
[1738704737092,37.02099605,205.45,205.38,0.0001]
[1738704737395,37.02099605,205.41,205.38,0.0001]
[1738704737724,37.02099605,205.43,205.38,0.0001]
[1738704737886,37.14648605,205.39,205.38,0.0001]
[1738704738088,37.02099605,205.39,205.38,0.0001]
[1738704738388,37.02099605,205.41,205.38,0.0001]
[1738704738583,37.14648605,205.39,205.38,0.0001]
[1738704738992,37.52295605,205.39,205.38,0.0001]
[1738704739308,43.39165605,205.39,205.38,0.0001]
[1738704739810,0.50196,205.33,205.26,0.063]
[1738704740107,37.02099605,205.27,205.26,0.063]
[1738704740885,0.50196,205.33,205.26,0.063]
[1738704740886,37.02099605,205.33,205.26,0.98865248]
[1738704741089,37.14648605,205.29,205.26,0.98865248]
[1738704741296,4.8713,205.28,205.26,0.063]
[1738704741707,4.8713,205.28,205.27,312.0]
[1738704742316,14.41184853,205.37,205.27,312.0]
[1738704742317,41.89129605,205.33,205.3,0.92565248]
[1738704742689,20.0,205.31,205.3,0.92565248]
[1738704742886,41.88999605,205.38,205.37,0.92565248]
[1738704743110,4.8687,205.4,205.37,0.92565248]
[1738704743897,4.8681,205.42,205.41,0.92565248]
[1738704744313,12.1675,205.47,205.37,37.02099605]
[1738704744314,37.02099605,205.47,205.45,0.92565248]
[1738704744622,4.8672,205.46,205.45,0.92565248]
[1738704745005,0.12549,205.45,205.43,0.92565248]
[1738704745197,4.99309,205.44,205.41,0.92565248]
[1738704745395,4.8676,205.44,205.43,312.0]
[1738704745594,57.8,205.49,205.48,0.92565248]
[1738704745595,37.02099605,205.49,205.48,0.92565248]
[1738704745793,37.02099605,205.53,205.48,0.92565248]
[1738704745998,20.0,205.49,205.48,0.92565248]
[1738704746200,37.02099605,205.51,205.48,0.92565248]
[1738704746410,37.02099605,205.53,205.51,0.92565248]
[1738704747429,4.8657,205.52,205.48,0.92565248]
[1738704747728,4.8657,205.52,205.5,0.92565248]
[1738704748018,4.95785603,205.52,205.5,0.92565248]
[1738704748426,37.02099605,205.51,205.46,0.92565248]
[1738704748727,37.02099605,205.48,205.44,0.92565248]
[1738704748918,37.02099605,205.48,205.46,312.0]
[1738704749121,0.12549,205.47,205.46,312.0]
[1738704749326,0.12549,205.47,205.46,287.5362]
[1738704749500,4.8676,205.44,205.41,0.92565248]
[1738704750318,57.14648605,205.43,205.38,0.92565248]
[1738704750617,37.02099605,205.39,205.3,37.02099605]
[1738704751120,0.12549,205.31,205.26,0.063]
[1738704751321,37.02099605,205.3,205.26,0.063]
[1738704751630,5.37356,205.27,205.26,0.0001]
[1738704752112,0.50196,205.23,205.17,0.063]
[1738704752315,37.02099605,205.18,205.04,37.02099605]
[1738704752516,0.12549,205.16,205.08,37.02099605]
[1738704752698,37.02099605,205.23,205.15,37.02099605]
[1738704753021,20.0,205.24,205.17,37.02099605]
[1738704753226,20.0,205.24,205.19,37.02099605]
[1738704753433,20.0,205.24,205.17,37.02099605]
[1738704753604,20.0,205.28,205.2,13.41184853]
[1738704753803,37.02099605,205.21,205.11,37.02099605]
[1738704754124,0.12549,205.2,205.11,37.02099605]
[1738704754322,0.12549,205.22,205.14,13.41184853]
[1738704754501,37.02099605,205.2,205.11,37.02099605]
[1738704754705,37.02099605,205.2,205.07,0.7311818]
[1738704754706,37.02099605,205.16,205.07,37.02099605]
[1738704754912,37.02099605,205.2,205.11,37.02099605]
[1738704755224,37.02099605,205.26,205.15,37.02099605]
[1738704755429,37.02099605,205.26,205.17,37.02099605]
[1738704755603,20.0,205.23,205.17,37.02099605]
[1738704755806,4.8717,205.27,205.19,37.02099605]
[1738704756221,0.12549,205.26,205.19,37.02099605]
[1738704756415,37.14648605,205.26,205.17,37.02099605]
[1738704756612,37.14648605,205.26,205.23,312.0]
[1738704756820,20.0,205.24,205.23,312.0]
[1738704757130,57.14648605,205.24,205.23,312.0]
[1738704757634,0.50196,205.23,205.13,37.02099605]
[1738704757930,4.872,205.26,205.19,37.02099605]
[1738704758231,4.872,205.26,205.13,0.37647]
[1738704758232,4.872,205.26,205.21,37.02099605]
[1738704758438,24.872,205.26,205.21,37.02099605]
[1738704759309,37.02099605,205.25,205.17,50.43284458]
[1738704759513,4.872,205.26,205.17,50.43284458]
[1738704759730,4.872,205.26,205.2,13.41184853]
[1738704759930,4.8699,205.34,205.25,13.41184853]
[1738704760230,37.02099605,205.27,205.18,43.28849605]
[1738704760407,20.0,205.24,205.16,37.02099605]
[1738704760604,37.02099605,205.23,205.22,312.0]
[1738704760810,0.12549,205.22,205.12,37.02099605]
[1738704761038,4.8737,205.18,205.1,43.28849605]
[1738704761221,37.02099605,205.15,205.06,37.02099605]
[1738704761434,37.02099605,205.11,205.02,37.02099605]
[1738704762134,0.12549,205.14,204.98,37.02099605]
[1738704762135,37.02099605,205.07,204.98,37.02099605]
[1738704762434,37.02099605,205.03,204.94,37.02099605]
[1738704762749,37.02099605,205.01,204.92,43.28849605]
[1738704762952,37.02099605,205.01,204.93,13.41184853]
[1738704763235,0.12549,204.99,204.92,37.02099605]
[1738704763418,57.02099605,204.97,204.94,0.063]
[1738704763620,0.37647,205.04,204.94,0.063]
[1738704763621,37.02099605,205.01,204.94,0.063]
[1738704763821,37.02099605,205.0,204.98,312.0]
[1738704764118,20.0,204.96,204.94,0.063]
[1738704764434,0.12549,204.95,204.94,0.063]
[1738704765029,20.0,204.88,204.81,37.02099605]
[1738704765247,41.90179605,204.89,204.81,37.02099605]
[1738704765411,4.8787,204.97,204.88,37.02099605]
[1738704765732,0.99994752,205.02,204.94,37.02099605]
[1738704765916,0.12549,204.99,204.92,37.02099605]
[1738704766107,0.12549,204.99,204.9,37.02099605]
[1738704766309,37.02099605,204.97,204.88,37.02099605]
[1738704766959,0.12549,204.94,204.93,312.0]
[1738704767249,0.12549,204.94,204.79,4.9458]
[1738704767250,0.12549,204.89,204.8,37.02099605]
[1738704767451,37.14648605,204.89,204.8,37.02099605]
[1738704767615,4.8804,204.9,204.82,37.02099605]
[1738704768012,0.09132818,204.83,204.82,37.02099605]
[1738704768223,0.09132818,204.83,204.8,37.02099605]
[1738704768817,0.09132818,204.83,204.81,13.41184853]
[1738704769115,0.09132818,204.83,204.82,37.02099605]
[1738704769316,0.09132818,204.83,204.79,0.063]
[1738704769631,4.97342818,204.83,204.79,0.063]
[1738704769817,0.09132818,204.83,204.8,37.02099605]
[1738704770012,0.09132818,204.83,204.82,50.43284458]
[1738704770213,0.09132818,204.83,204.82,50.80931458]
[1738704770448,0.09132818,204.83,204.82,37.02099605]
[1738704771048,0.09132818,204.83,204.82,362.80931458]
[1738704771430,0.09132818,204.83,204.82,367.69161458]
[1738704772717,0.09132818,204.83,204.82,362.43284458]
[1738704772920,0.09132818,204.83,204.82,312.0]
[1738704773938,0.09132818,204.83,204.82,362.43284458]
[1738704774138,0.09132818,204.83,204.82,362.68382458]
[1738704774451,0.09132818,204.83,204.82,362.43284458]
[1738704774656,0.09132818,204.83,204.82,349.02099605]
[1738704774818,0.09132818,204.83,204.82,312.0]
[1738704775249,0.09132818,204.83,204.82,349.02099605]
[1738704775626,0.09132818,204.83,204.82,362.49584458]
[1738704775953,0.09132818,204.83,204.82,349.08399605]
[1738704776323,0.09132818,204.83,204.82,367.75461458]
[1738704776527,0.09132818,204.83,204.82,367.88010458]
[1738704776835,0.1048247,204.87,204.86,34.91380853]
[1738704777043,0.1048247,204.87,204.86,108.68763699]
[1738704777255,0.1048247,204.87,204.86,70.80931458]
[1738704777441,0.1048247,204.87,204.86,77.42253508]
[1738704777625,0.1048247,204.87,204.86,77.54802508]
[1738704777822,0.1048247,204.87,204.86,114.56902113]
[1738704778053,4.9083,204.99,204.87,13.91380853]
[1738704778351,0.03,204.99,204.87,50.80931458]
[1738704778717,0.03,204.99,204.88,14.91380853]
[1738704778955,0.03,204.99,204.88,52.66651633]
[1738704779251,0.03,204.99,204.88,53.66651633]
[1738704779453,0.03,204.99,204.88,19.66921853]
[1738704779634,20.03,204.99,204.88,13.66282853]
[1738704779834,4.8809,204.88,204.85,37.02099605]
[1738704780044,4.8809,204.88,204.82,0.063]
[1738704780045,20.12549,204.88,204.87,312.0]
[1738704780346,37.14648605,204.88,204.82,0.063]
[1738704780532,20.0,204.86,204.82,0.063]
[1738704780735,0.08842553,204.89,204.86,13.41184853]
[1738704781033,4.96902553,204.89,204.84,37.02099605]
[1738704781236,37.02099605,204.88,204.82,0.063]
[1738704781430,17.17062553,204.89,204.85,13.41184853]
[1738704781431,0.08842553,204.89,204.85,13.41184853]
[1738704781844,0.08842553,204.89,204.85,0.12549]
[1738704782045,0.08842553,204.89,204.88,37.27197605]
[1738704782257,0.08842553,204.89,204.88,50.80931458]
[1738704782839,0.08842553,204.89,204.84,37.02099605]
[1738704783038,4.96912553,204.89,204.84,37.02099605]
[1738704783437,0.08842553,204.89,204.88,37.39746605]
[1738704783636,0.08842553,204.89,204.86,37.02099605]
[1738704783854,0.08842553,204.89,204.88,37.02099605]
[1738704784059,0.08842553,204.89,204.88,88.95580063]
[1738704784355,0.08842553,204.89,204.88,401.68752673]
[1738704784567,0.08842553,204.89,204.88,362.68382458]
[1738704784766,2.553e-05,204.89,204.88,400.70482063]
[1738704784930,5.546e-05,204.9,204.89,14.91380853]
[1738704785448,0.03,204.99,204.98,2.50196]
[1738704785636,4.8789,205.18,205.11,37.02099605]
[1738704785841,4.8738,205.18,205.11,37.02099605]
[1738704786229,12.1824,205.22,205.14,13.41184853]
[1738704786230,37.02099605,205.22,205.14,13.41184853]
[1738704786436,38.02094357,205.3,205.14,13.41184853]
[1738704786437,37.02099605,205.24,205.16,13.41184853]
[1738704786637,37.02099605,205.28,205.19,37.02099605]
[1738704786864,37.02099605,205.25,205.16,37.02099605]
[1738704787158,37.02099605,205.25,205.16,50.43284458]
[1738704787323,4.8718,205.26,205.18,37.02099605]
[1738704787527,0.03,205.31,205.24,13.41184853]
[1738704787729,0.03,205.31,205.29,37.02099605]
[1738704787955,0.03,205.31,205.3,1.0]
[1738704788134,0.03,205.31,205.3,37.02099605]
[1738704788334,0.03,205.31,205.3,349.02099605]
[1738704788627,0.03,205.31,205.3,325.41184853]
[1738704789229,20.0,205.29,205.18,37.02099605]
[1738704789524,37.02099605,205.26,205.18,37.02099605]
[1738704789727,37.02099605,205.24,205.16,37.02099605]
[1738704789935,37.02099605,205.24,205.15,0.12549]
[1738704790147,37.02099605,205.22,205.14,37.02099605]
[1738704790364,4.8713,205.29,205.21,13.41184853]
[1738704790527,4.8713,205.29,205.2,37.02099605]
[1738704790528,4.8713,205.29,205.22,37.02099605]
[1738704790734,20.0,205.27,205.21,13.41184853]
[1738704791140,20.0,205.27,205.2,37.02099605]
[1738704791366,4.873,205.21,205.11,37.02099605]
[1738704791656,37.02099605,205.22,205.13,37.02099605]
[1738704792028,37.02099605,205.22,205.11,37.02099605]
[1738704792229,37.02099605,205.2,205.13,312.0]
[1738704792446,4.8727,205.23,205.17,37.02099605]